fUSD/lending_fUSD_20251017
["ID","MTS","AMOUNT","RATE_DAILY","PERIOD"]
[391687545,1760729441863,-319.0,0.00031644,2]
[391687546,1760729441873,-2286.0,0.00031666,2]
[391687547,1760729441884,-2286.0,0.00031667,7]
[391687548,1760729441894,-161.0,0.000317,120]
[391687549,1760729441906,-150.0,0.0003177,120]
[391687550,1760729441917,-400.0,0.0003177,2]
[391687551,1760729441927,-2286.0,0.00031785,7]
[391687552,1760729441938,-1119.61,0.000318,2]
[391687553,1760729441948,-1117.73,0.000318,30]
[391687554,1760729441959,-2286.0,0.00031804,2]
[391687555,1760729441970,-168.0,0.0003181,2]
[391687556,1760729441980,-200.0,0.00031889,2]
[391687557,1760729441991,-2286.0,0.00031895,2]
[391687558,1760729442002,-1000.0,0.00031956,12]
[391687559,1760729442013,-233.12660476,0.00031956,12]
[391687560,1760729442024,-1000.0,0.00031956,12]
[391687561,1760729442035,-1000.0,0.00031956,12]
[391687562,1760729442047,-1000.0,0.00031956,12]
[391687563,1760729442059,-1000.0,0.00031956,12]
[391687564,1760729442069,-1000.0,0.00031956,12]
[391687565,1760729442080,-1000.0,0.00031956,12]
[391687566,1760729442091,-1000.0,0.00031956,12]
[391687567,1760729442102,-1000.0,0.00031956,12]
[391687568,1760729442112,-500.0,0.00031973,5]
[391687569,1760729442123,-218.24295797,0.00031983,120]
[391687570,1760729442133,-199.10964775,0.00032,30]
[391687571,1760729442144,-3204.59563733,0.00032,120]
[391687572,1760729442156,-158.55276527,0.00032,30]
[391687573,1760729442167,-5745.93451095,0.00032,5]
[391687574,1760729442178,-151.0,0.00032031,30]
[391687575,1760729442188,-151.0,0.00032031,30]
[391687576,1760729442199,-151.0,0.00032031,30]
[391687577,1760729442210,-151.0,0.00032031,30]
[391687578,1760729442221,-151.0,0.00032031,30]
[391687579,1760729442232,-151.0,0.00032031,30]
[391687580,1760729442243,-151.0,0.00032031,30]
[391687581,1760729442253,-151.0,0.00032031,30]
[391687582,1760729442265,-151.0,0.00032031,30]
[391687583,1760729442275,-151.0,0.00032031,30]
[391687584,1760729442286,-151.0,0.00032031,30]
[391687585,1760729442297,-151.0,0.00032031,30]
[391687586,1760729442308,-262.18,0.00032031,30]
[391687587,1760729442318,-154.162599,0.00032031,30]
[391687588,1760729442329,-151.0,0.00032031,30]
[391687589,1760729442340,-151.0,0.00032031,10]
[391687591,1760729442350,-151.0,0.00032031,30]
[391687593,1760729442360,-151.0,0.00032031,30]
[391687595,1760729442371,-735.510893,0.00032031,30]
[391687597,1760729442381,-151.0,0.00032031,30]
[391687599,1760729442391,-735.510893,0.00032031,30]
[391687601,1760729442403,-258.432712,0.00032031,30]
[391687603,1760729442414,-151.0,0.00032031,30]
[391687604,1760729442426,-151.0,0.00032031,30]
[391687605,1760729442437,-151.0,0.00032031,30]
[391687606,1760729442448,-735.510893,0.00032031,30]
[391687607,1760729442459,-735.510893,0.00032031,30]
[391687608,1760729442471,-151.0,0.00032031,30]
[391687609,1760729442482,-151.0,0.00032031,30]
[391687610,1760729442493,-151.0,0.00032031,30]
[391687611,1760729442506,-346.497404,0.00032031,30]
[391687613,1760729442517,-151.0,0.00032031,30]
[391687615,1760729442528,-179.575072,0.00032031,30]
[391687617,1760729442539,-346.497404,0.00032031,30]
[391687618,1760729442549,-280.345504,0.00032031,30]
[391687619,1760729442560,-346.497404,0.00032031,30]
[391687620,1760729442571,-280.345504,0.00032031,30]
[391687621,1760729442582,-346.497404,0.00032031,30]
[391687622,1760729442593,-280.345504,0.00032031,30]
[391687623,1760729442604,-280.345504,0.00032031,30]
[391687624,1760729442615,-1000.0,0.00032031,30]
[391687625,1760729442626,-151.0,0.00032031,30]
[391687626,1760729442637,-151.0,0.00032031,30]
[391687627,1760729442647,-151.0,0.00032031,30]
[391687628,1760729442659,-171.817558,0.00032031,30]
[391687629,1760729442889,-151.0,0.00032031,30]
[391687630,1760729442909,-151.0,0.00032031,30]
[391687631,1760729442918,-151.0,0.00032031,30]
[391687632,1760729442928,-670.971821,0.00032031,30]
[391687633,1760729442938,-177.804928,0.00032031,30]
[391687634,1760729442948,-670.971821,0.00032031,30]
[391687635,1760729442957,-151.0,0.00032031,30]
[391687636,1760729442967,-177.804928,0.00032031,30]
[391687637,1760729442976,-670.971821,0.00032031,30]
[391687638,1760729442986,-151.0,0.00032031,30]
[391687639,1760729442995,-670.971821,0.00032031,30]
[391687640,1760729443004,-177.804928,0.00032031,30]
[391687642,1760729443013,-621.69148,0.00032031,30]
[391687643,1760729443023,-177.804928,0.00032031,30]
[391687644,1760729443032,-621.69148,0.00032031,30]
[391687645,1760729443042,-151.0,0.00032031,30]
[391687646,1760729443051,-621.69148,0.00032031,30]
[391687647,1760729443061,-154.421392,0.00032031,30]
[391687648,1760729443070,-151.0,0.00032031,30]
[391687649,1760729443079,-151.0,0.00032031,30]
[391687650,1760729443089,-151.0,0.00032031,30]
[391687651,1760729443098,-621.69148,0.00032031,30]
[391687652,1760729443107,-154.421392,0.00032031,30]
[391687653,1760729443116,-154.421392,0.00032031,30]
[391687654,1760729443126,-151.0,0.00032031,30]
[391687655,1760729443135,-297.945712,0.00032031,30]
[391687656,1760729443144,-151.0,0.00032031,30]
[391687657,1760729443154,-154.421392,0.00032031,30]
[391687658,1760729443164,-151.0,0.00032031,30]
[391687659,1760729443173,-283.264368,0.00032031,30]
[391687660,1760729443183,-297.945712,0.00032031,30]
[391687661,1760729443193,-151.0,0.00032031,30]
[391687662,1760729443202,-283.264368,0.00032031,30]
[391687663,1760729443212,-297.945712,0.00032031,30]
[391687664,1760729443221,-150.0,0.00032031,2]
[391687665,1760729443231,-8234.41685644,0.00032031,5]
[391687666,1760729443242,-6876.26816062,0.00032031,2]
[391687667,1760729443251,-156.98996217,0.00032031,2]
[391687668,1760729443261,-11101.219999,0.00032031,2]
[391687669,1760729443271,-200782.91526931,0.00032031,2]
[391687670,1760729443281,-504.87836015,0.00032031,2]
[391687671,1760729443290,-5100.0,0.00032069,30]
[391687672,1760729443300,-10000.0,0.00032098,30]
[391687673,1760729443310,-150.0,0.00032098,30]
[391687674,1760729443319,-68161.2832268,0.00032109,14]
[391687675,1760729443328,-150.0,0.0003211,120]
[391687676,1760729443337,-877.37453512,0.000323,2]
[391687677,1760729443346,-151.0,0.000324,120]
[391687678,1760729443356,-161.0,0.000324,120]
[391687679,1760729443366,-500.0,0.00032521,5]
[391687680,1760729443375,-168.0,0.00032555,2]
[391687681,1760729443385,-388.46991561,0.00032558,2]
[391687682,1760729443395,-5888.0,0.00032574,2]
[391687683,1760729443406,-168.0,0.00032762,2]
[391687684,1760729443415,-4742.17023011,0.000328,2]
[391687685,1760729443430,-4999.5225,0.00032876,4]
[391687686,1760729443440,-187.6396686,0.00032877,2]
[391687687,1760729443449,-338.64,0.00032877,2]
[391687688,1760729443459,-11081.00959497,0.00032923,30]
[391687689,1760729443470,-2286.0,0.00032927,2]
[391687690,1760729443480,-5888.0,0.00032929,2]
[391687691,1760729443489,-161.76830817,0.00032978,2]
[391687692,1760729443500,-1323.78782768,0.00033,2]
[391687693,1760729443509,-4825.95,0.00033,14]
[391687694,1760729443518,-9595.82,0.00033,2]
[391687695,1760729443528,-1509.25903709,0.00033,2]
[391687696,1760729443537,-1530.45005632,0.00033,2]
[391687697,1760729443548,-150.81024776,0.00033,2]
[391687698,1760729443558,-465.96728304,0.00033,120]
[391687699,1760729443567,-161.0,0.000331,120]
[391687700,1760729443576,-314.67,0.00033165,2]
[391687701,1760729443588,-2286.0,0.00033185,2]
[391687702,1760729443597,-2286.0,0.00033263,2]
[391687703,1760729443607,-2286.0,0.00033284,2]
[391687704,1760729443617,-5888.0,0.00033292,2]
[391687705,1760729443627,-1119.61,0.000333,2]
[391687706,1760729443637,-1117.73,0.000333,30]
[391687707,1760729443646,-5888.0,0.00033353,7]
[391687708,1760729443658,-1189.84483521,0.000335,2]
[391687709,1760729443670,-151.0,0.000337,120]
[391687710,1760729443680,-161.0,0.000337,120]
[391687711,1760729443689,-160.9,0.00033838,2]
[391687712,1760729443699,-173.99624243,0.00034,30]
[391687713,1760729443709,-976.96,0.00034,2]
[391687714,1760729443718,-19999.999999,0.00034,30]
[391687715,1760729443731,-968.23,0.00034,60]
[391687716,1760729443741,-35273.81620056,0.0003413,10]
[391687717,1760729443751,-232.78,0.00034236,2]
[391687718,1760729443760,-161.0,0.000344,120]
[391687719,1760729443770,-30980.0,0.000344,2]
[391687720,1760729443779,-1699.80830621,0.0003449,2]
[391687721,1760729443789,-433.0,0.0003449,10]
[391687722,1760729443799,-7702.47,0.00034649,2]
[391687723,1760729443808,-19484.9,0.00034649,30]
[391687724,1760729443818,-15967.13,0.00034649,2]
[391687725,1760729443827,-19999.99,0.00034649,2]
[391687726,1760729443837,-811.44762243,0.00034849,120]
[391687727,1760729443846,-2943.43154734,0.0003485,60]
[391687728,1760729443855,-3737.38423386,0.000349,24]
[391687729,1760729443865,-507.86946841,0.000349,2]
[391687730,1760729443875,-256.12427573,0.000349,120]
[391687731,1760729443884,-1092.91199957,0.0003495,120]
[391687732,1760729443894,-1518.95,0.00035,120]
[391687733,1760729443904,-2372.78,0.00035,120]
[391687734,1760729443913,-2381.26,0.00035,120]
[391687735,1760729443923,-1553.18,0.00035,120]
[391687736,1760729443933,-1110.76,0.00035,120]
[391687737,1760729443943,-1261.1,0.00035,120]
[391687738,1760729443952,-400.06217147,0.00035,2]
[391687739,1760729443961,-1215.55064977,0.00035,2]
[391687740,1760729443971,-399.999999,0.00035,30]
[391687741,1760729443980,-2678.24040781,0.00035,60]
[391687742,1760729443989,-1000.0,0.00035,4]
[391687743,1760729443999,-151.0,0.000351,120]
[391687744,1760729444010,-161.0,0.000351,120]
[391687745,1760729444020,-1119.61,0.000352,2]
[391687746,1760729444030,-1117.73,0.000352,30]
[391687747,1760729444039,-5512.0,0.000352,3]
[391687748,1760729444048,-300.0,0.00035299,10]
[391687749,1760729444058,-2500.0,0.000353,14]
[391687750,1760729444068,-209717.63711429,0.0003539,30]
[391687751,1760729444078,-9595.82,0.000355,2]
[391687752,1760729444087,-6666.03,0.00035616,5]
[391687753,1760729444096,-161.76830817,0.00035726,2]
[391687754,1760729444106,-161.0,0.000358,120]
[391687755,1760729444116,-300.0,0.00035841,7]
[391687756,1760729444126,-4537.6760399,0.0003585,60]
[391687757,1760729444136,-224.52,0.00035901,14]
[391687758,1760729444145,-312.16991843,0.00035911,2]
[391687759,1760729444155,-150.0,0.00035978,7]
[391687760,1760729444165,-300.0,0.00035978,7]
[391687761,1760729444174,-50026.49511703,0.00036,6]
[391687762,1760729444183,-10677.0561883,0.00036,2]
[391687763,1760729444193,-234.82294058,0.00036,120]
[391687764,1760729444203,-602.25012624,0.00036,30]
[391687765,1760729444213,-602.25012624,0.00036,120]
[391687766,1760729444222,-602.25012624,0.00036,2]
[391687767,1760729444231,-5512.0,0.00036,5]
[391687768,1760729444240,-1584.17,0.00036029,2]
[391687769,1760729444250,-281.756,0.00036029,2]
[391687770,1760729444259,-816.0,0.00036029,2]
[391687771,1760729444268,-902.0,0.00036029,2]
[391687772,1760729444278,-1183.0,0.00036029,2]
[391687773,1760729444288,-2546.0,0.00036029,2]
[391687774,1760729444297,-6436.0,0.00036029,2]
[391687775,1760729444307,-557.0,0.00036029,2]
[391687776,1760729444316,-1267.0,0.00036029,2]
[391687777,1760729444326,-3408.0,0.00036029,2]
[391687778,1760729444335,-3356.0,0.00036029,2]
[391687779,1760729444344,-749.0,0.00036029,2]
[391687780,1760729444354,-257.42,0.00036043,2]
[391687781,1760729444363,-153.543573,0.00036089,17]
[391687782,1760729444372,-4825.95,0.000361,14]
[391687783,1760729444382,-150.0,0.00036242,120]
[391687784,1760729444391,-153.543573,0.00036336,17]
[391687785,1760729444401,-151.0,0.000364,120]
[391687786,1760729444410,-2680.44359193,0.000365,120]
[391687787,1760729444420,-161.0,0.000365,120]
[391687788,1760729444434,-1612.58918486,0.000367,120]
[391687789,1760729444444,-5000.0,0.000369,2]
[391687790,1760729444453,-13885.18138166,0.0003691,2]
[391687791,1760729444463,-2636.0,0.00037,120]
[391687792,1760729444474,-1000.0,0.00037,2]
[391687793,1760729444483,-1000.0,0.00037,2]
[391687794,1760729444493,-1019.9264,0.00037,2]
[391687795,1760729444504,-1000.0,0.00037,2]
[391687796,1760729444513,-1000.0,0.00037,2]
[391687797,1760729444522,-1000.0,0.00037,2]
[391687798,1760729444531,-1000.0,0.00037,2]
[391687799,1760729444541,-1000.0,0.00037,2]
[391687800,1760729444550,-1000.0,0.00037,2]
[391687801,1760729444559,-1000.0,0.00037,2]
[391687802,1760729444569,-1235.24595007,0.00037,30]
[391687803,1760729444579,-1119.61,0.00037,2]
[391687804,1760729444589,-1117.73,0.00037,30]
[391687805,1760729444599,-9999.99,0.00037067,2]
[391687806,1760729444608,-6364.6,0.00037067,90]
[391687807,1760729444618,-1181.51,0.00037067,2]
[391687808,1760729444627,-8990.38,0.00037067,2]
[391687809,1760729444636,-9999.99,0.00037067,2]
[391687810,1760729444646,-16251.68,0.00037067,20]
[391687811,1760729444656,-19652.18,0.00037067,2]
[391687812,1760729444665,-9999.99,0.00037067,2]
[391687813,1760729444675,-2007.27,0.00037067,2]
[391687814,1760729444684,-150.99,0.00037067,2]
[391687815,1760729444693,-999.99,0.00037067,2]
[391687816,1760729444703,-305.7,0.00037067,2]
[391687817,1760729444712,-299.99,0.00037067,30]
[391687818,1760729444722,-1514.62,0.00037067,2]
[391687819,1760729444731,-109145.36,0.00037067,10]
[391687820,1760729444741,-150.99,0.00037067,30]
[391687821,1760729444750,-9999.99,0.00037067,2]
[391687822,1760729444760,-232.49773783,0.000372,120]
[391687823,1760729444770,-232.49773783,0.000372,120]
[391687824,1760729444779,-232.49773783,0.000372,120]
[391687825,1760729444789,-161.0,0.000372,120]
[391687826,1760729444798,-150.0,0.00037248,120]
[391687827,1760729444807,-196620.84056583,0.0003739,14]
[391687828,1760729444817,-232.78,0.00037518,2]
[391687829,1760729444827,-1390.54,0.00037558,2]
[391687830,1760729444836,-953.38,0.00037558,2]
[391687831,1760729444846,-4258.75807104,0.0003759,2]
[391687832,1760729444856,-1093.4,0.00037695,2]
[391687833,1760729444876,-2398.74,0.00037695,2]
[391687834,1760729444887,-168.24,0.00037695,2]
[391687835,1760729444896,-413.65,0.00037695,2]
[391687836,1760729444908,-300.0,0.00037695,2]
[391687837,1760729444917,-413.65,0.00037695,2]
[391687838,1760729444927,-168.24,0.00037695,2]
[391687839,1760729444936,-1093.4,0.00037695,2]
[391687840,1760729444945,-176.05,0.00037695,2]
[391687841,1760729444955,-300.0,0.00037695,2]
[391687842,1760729444964,-168.24,0.00037695,2]
[391687843,1760729444973,-413.65,0.00037695,2]
[391687844,1760729444983,-151.0,0.000378,120]
[391687845,1760729444992,-9595.82,0.000378,2]
[391687846,1760729445001,-556.0,0.00037869,120]
[391687847,1760729445011,-198.59470764,0.0003788,2]
[391687848,1760729445020,-161.0,0.000379,120]
[391687849,1760729445030,-1698.25441444,0.00037956,2]
[391687850,1760729445039,-787.81930216,0.00037999,120]
[391687851,1760729445048,-1864.84505202,0.00038,120]
[391687852,1760729445058,-273.33284429,0.00038,120]
[391687853,1760729445067,-8332.5375,0.00038356,6]
[391687854,1760729445077,-161.76830817,0.00038474,2]
[391687855,1760729445086,-500.0,0.00038517,10]
[391687856,1760729445096,-500.0,0.000386,5]
[391687857,1760729445106,-3013.89087524,0.000386,120]
[391687858,1760729445116,-1119.61,0.000386,2]
[391687859,1760729445126,-1117.73,0.000386,30]
[391687860,1760729445136,-161.0,0.000386,120]
[391687861,1760729445146,-500.0,0.00038791,10]
[391687862,1760729445155,-4825.95,0.000388,14]
[391687863,1760729445165,-2017.44441733,0.000388,120]
[391687864,1760729445175,-153.0,0.00038884,30]
[391687865,1760729445184,-153.0,0.00038884,30]
[391687866,1760729445194,-1158.82100279,0.00038889,30]
[391687867,1760729445204,-3081.27788322,0.0003889,30]
[391687868,1760729445214,-1503.0,0.000389,2]
[391687869,1760729445223,-7761.65259511,0.0003899,14]
[391687870,1760729445233,-2389.14022544,0.0003899,120]
[391687871,1760729445243,-2636.0,0.00039,120]
[391687872,1760729445253,-70811.13704374,0.00039,10]
[391687873,1760729445263,-2308.67056713,0.00039,120]
[391687874,1760729445273,-1500.40145527,0.00039,120]
[391687875,1760729445282,-2876.37677864,0.00039,30]
[391687876,1760729445292,-3117.26388516,0.00039,120]
[391687877,1760729445301,-39423.67639573,0.00039,120]
[391687878,1760729445312,-602.25012624,0.00039,120]
[391687879,1760729445321,-816.0,0.00039029,2]
[391687880,1760729445331,-902.0,0.00039029,2]
[391687881,1760729445340,-1183.0,0.00039029,2]
[391687882,1760729445350,-2546.0,0.00039029,2]
[391687883,1760729445359,-5899.201,0.00039029,2]
[391687884,1760729445368,-557.0,0.00039029,2]
[391687885,1760729445378,-1267.0,0.00039029,2]
[391687886,1760729445388,-3408.0,0.00039029,2]
[391687887,1760729445397,-3356.0,0.00039029,2]
[391687888,1760729445411,-749.0,0.00039029,2]
[391687889,1760729445421,-1336.03475588,0.0003903,2]
[391687890,1760729445435,-500.0,0.00039065,10]
[391687891,1760729445445,-151.0,0.000391,120]
[391687892,1760729445454,-150.0,0.00039106,120]
[391687893,1760729445464,-161.0,0.000392,120]
[391687894,1760729445474,-500.0,0.00039339,10]
[391687895,1760729445486,-2000.0,0.00039343,120]
[391687896,1760729445497,-1698.25441444,0.00039344,2]
[391687897,1760729445506,-232.49773783,0.0003935,120]
[391687898,1760729445516,-9595.82,0.000394,30]
[391687899,1760729445526,-300.0,0.00039433,10]
[391687900,1760729445535,-151.0,0.00039441,14]
[391687901,1760729445545,-300.0,0.00039443,10]
[391687902,1760729445555,-300.0,0.00039443,10]
[391687903,1760729445565,-300.0,0.00039443,10]
[391687904,1760729445575,-214429.9705,0.00039444,7]
[391687905,1760729445584,-151.0,0.00039444,120]
[391687906,1760729445594,-2807.343157,0.00039444,120]
[391687907,1760729445603,-2807.343157,0.00039444,120]
[391687908,1760729445612,-2807.343157,0.00039444,120]
[391687909,1760729445621,-663.926566,0.00039444,120]
[391687910,1760729445631,-2807.343157,0.00039444,120]
[391687911,1760729445641,-663.926566,0.00039444,120]
[391687912,1760729445650,-663.926566,0.00039444,120]
[391687913,1760729445661,-663.926566,0.00039444,120]
[391687914,1760729445671,-5482.815337,0.00039444,120]
[391687915,1760729445680,-151.0,0.00039444,120]
[391687916,1760729445690,-151.0,0.00039444,120]
[391687917,1760729445699,-5482.815337,0.00039444,120]
[391687918,1760729445709,-151.0,0.00039444,120]
[391687919,1760729445718,-5482.815337,0.00039444,120]
[391687920,1760729445727,-5482.815337,0.00039444,120]
[391687921,1760729445736,-151.0,0.00039444,120]
[391687922,1760729445746,-250.695782,0.00039444,120]
[391687923,1760729445756,-151.0,0.00039444,120]
[391687924,1760729445765,-151.0,0.00039444,120]
[391687925,1760729445775,-250.695782,0.00039444,120]
[391687926,1760729445784,-151.0,0.00039444,120]
[391687927,1760729445793,-741.469166,0.00039444,120]
[391687928,1760729445802,-250.695782,0.00039444,120]
[391687929,1760729445811,-151.0,0.00039444,120]
[391687930,1760729445820,-741.469166,0.00039444,120]
[391687931,1760729445829,-250.695782,0.00039444,120]
[391687932,1760729445839,-151.0,0.00039444,120]
[391687933,1760729445848,-972.62092,0.00039444,120]
[391687934,1760729445857,-741.469166,0.00039444,120]
[391687935,1760729445867,-972.62092,0.00039444,120]
[391687936,1760729445879,-741.469166,0.00039444,120]
[391687937,1760729445888,-972.62092,0.00039444,120]
[391687938,1760729445897,-972.62092,0.00039444,120]
[391687939,1760729445909,-151.0,0.00039444,120]
[391687940,1760729445918,-151.0,0.00039444,120]
[391687941,1760729445928,-151.0,0.00039444,120]
[391687942,1760729445940,-359.280629,0.00039444,120]
[391687943,1760729445949,-359.280629,0.00039444,120]
[391687944,1760729445959,-359.280629,0.00039444,120]
[391687945,1760729445968,-151.0,0.00039444,120]
[391687946,1760729445977,-359.280629,0.00039444,120]
[391687947,1760729445986,-151.0,0.00039444,120]
[391687948,1760729445995,-151.0,0.00039444,120]
[391687949,1760729446005,-151.0,0.00039444,120]
[391687950,1760729446014,-166.04712,0.00039444,120]
[391687951,1760729446166,-151.0,0.00039444,120]
[391687952,1760729446178,-151.0,0.00039444,30]
[391687953,1760729446188,-151.0,0.00039444,30]
[391687954,1760729446198,-218.027628,0.00039444,20]
[391687955,1760729446208,-218.027628,0.00039444,20]
[391687956,1760729446218,-342.892241,0.00039444,120]
[391687957,1760729446228,-711.887367,0.00039444,120]
[391687958,1760729446238,-218.027628,0.00039444,20]
[391687959,1760729446247,-342.892241,0.00039444,120]
[391687960,1760729446257,-711.887367,0.00039444,120]
[391687961,1760729446267,-218.027628,0.00039444,20]
[391687962,1760729446276,-711.887367,0.00039444,120]
[391687963,1760729446285,-342.892241,0.00039444,120]
[391687964,1760729446295,-711.887367,0.00039444,120]
[391687965,1760729446305,-342.892241,0.00039444,120]
[391687966,1760729446314,-151.0,0.00039444,120]
[391687967,1760729446323,-151.0,0.00039444,120]
[391687968,1760729446333,-194.446126,0.00039444,120]
[391687969,1760729446342,-211.970065,0.00039444,120]
[391687970,1760729446352,-211.970065,0.00039444,120]
[391687971,1760729446361,-211.970065,0.00039444,120]
[391687972,1760729446371,-211.970065,0.00039444,120]
[391687973,1760729446380,-500.0,0.00039613,10]
[391687974,1760729446390,-314.67,0.00039654,2]
[391687975,1760729446399,-180.0,0.00039792,30]
[391687976,1760729446413,-180.0,0.00039792,30]
[391687977,1760729446425,-180.0,0.00039792,30]
[391687978,1760729446436,-245.26442753,0.00039792,30]
[391687979,1760729446446,-152.0,0.0003982,3]
[391687980,1760729446456,-500.0,0.00039887,10]
[391687981,1760729446467,-161.0,0.000399,120]
[391687982,1760729446476,-1024.85447797,0.0003997,15]
[391687983,1760729446486,-300.0,0.00039999,10]
[391687984,1760729446496,-300.0,0.00039999,10]
[391687985,1760729446506,-300.0,0.00039999,10]
[391687986,1760729446516,-445963.22918349,0.0004,2]
[391687987,1760729446526,-477.12749073,0.0004,30]
[391687988,1760729446535,-414.41037173,0.0004,7]
[391687989,1760729446544,-250.18,0.0004,120]
[391687990,1760729446554,-292.5998,0.0004,120]
[391687991,1760729446564,-4042.3347584,0.0004,14]
[391687992,1760729446574,-2607.95569,0.0004,90]
[391687993,1760729446583,-337.82366631,0.0004,120]
[391687994,1760729446592,-54551.11979059,0.0004,120]
[391687995,1760729446602,-5009.64074741,0.0004,10]
[391687996,1760729446611,-1856.13164766,0.0004,120]
[391687997,1760729446621,-661.86217465,0.0004,30]
[391687998,1760729446631,-927.74466825,0.0004,120]
[391687999,1760729446640,-13845.13717553,0.0004,120]
[391688000,1760729446650,-2299.99999103,0.0004,2]
[391688001,1760729446660,-961.82348917,0.0004,7]
[391688002,1760729446670,-204.41360584,0.0004,30]
[391688003,1760729446679,-996.39564586,0.0004,20]
[391688004,1760729446688,-2306.70272164,0.0004,120]
[391688005,1760729446698,-384.00634793,0.0004,2]
[391688006,1760729446707,-108264.82668771,0.0004,30]
[391688007,1760729446717,-2291.5609313,0.0004,120]
[391688008,1760729446726,-719.184267,0.0004,30]
[391688009,1760729446735,-519.06717968,0.0004,120]
[391688010,1760729446747,-1989.66198057,0.0004,120]
[391688011,1760729446757,-2673.75435802,0.0004,120]
[391688012,1760729446766,-231.51852236,0.0004,120]
[391688013,1760729446776,-215.21766616,0.0004,2]
[391688014,1760729446785,-7555.62184563,0.0004,120]
[391688015,1760729446795,-1133.31713148,0.0004,120]
[391688016,1760729446805,-1198.11783255,0.0004,120]
[391688017,1760729446814,-983.89767249,0.0004,2]
[391688018,1760729446823,-495.24685724,0.0004,120]
[391688019,1760729446832,-1105.0024428,0.0004,30]
[391688020,1760729446842,-2596.59128746,0.0004,30]
[391688021,1760729446853,-11500.95686108,0.0004,120]
[391688022,1760729446862,-500.0,0.0004,30]
[391688023,1760729446871,-2014.78105189,0.0004,120]
[391688024,1760729446880,-1523.00248362,0.0004,120]
[391688025,1760729446891,-151.0,0.0004,120]
[391688026,1760729446901,-151.0,0.0004,120]
[391688027,1760729446911,-602.25012624,0.0004,120]
[391688028,1760729446920,-151.0,0.0004,120]
[391688029,1760729446929,-602.25012624,0.0004,2]
[391688030,1760729446939,-151.0,0.0004,120]
[391688031,1760729446948,-151.0,0.0004,120]
[391688032,1760729446958,-200.488771,0.0004,120]
[391688033,1760729446967,-151.0,0.0004,120]
[391688034,1760729446977,-151.0,0.0004,120]
[391688035,1760729446987,-602.25012624,0.0004,30]
[391688036,1760729446996,-151.0,0.0004,120]
[391688037,1760729447007,-151.0,0.0004,120]
[391688038,1760729447019,-151.0,0.0004,120]
[391688039,1760729447030,-151.0,0.0004,120]
[391688040,1760729447048,-151.0,0.0004,120]
[391688041,1760729447058,-151.0,0.0004,10]
[391688042,1760729447067,-151.0,0.0004,120]
[391688043,1760729447077,-151.0,0.0004,120]
[391688044,1760729447086,-735.510893,0.0004,120]
[391688045,1760729447096,-151.0,0.0004,120]
[391688046,1760729447106,-735.510893,0.0004,120]
[391688047,1760729447116,-151.0,0.0004,120]
[391688048,1760729447125,-151.0,0.0004,120]
[391688049,1760729447135,-735.510893,0.0004,120]
[391688050,1760729447144,-735.510893,0.0004,120]
[391688051,1760729447154,-151.0,0.0004,120]
[391688052,1760729447164,-151.0,0.0004,120]
[391688053,1760729447173,-151.0,0.0004,120]
[391688054,1760729447183,-346.497404,0.0004,120]
[391688055,1760729447192,-151.0,0.0004,120]